lending/lending_fUSD_20251121
["ID","MTS","AMOUNT","RATE_DAILY","PERIOD"]
[394572883,1763725839126,-1472.08751973,0.00016127,2]
[394572885,1763725839137,-620.0,0.00016128,2]
[394572887,1763725839146,-150.0,0.00016137,2]
[394572889,1763725839156,-150.0,0.00016137,2]
[394572891,1763725839166,-150.0,0.00016137,2]
[394572893,1763725839175,-200.0,0.0001616,2]
[394572895,1763725839184,-17093.4888939,0.00016162,2]
[394572897,1763725839193,-500.0,0.00016208,2]
[394572899,1763725839202,-500.0,0.00016208,2]
[394572900,1763725839211,-500.0,0.00016208,2]
[394572902,1763725839220,-503.23,0.00016208,2]
[394572904,1763725839231,-500.0,0.00016208,2]
[394572907,1763725839241,-588.47923029,0.00016208,2]
[394572909,1763725839251,-2500.0,0.00016209,2]
[394572911,1763725839260,-2500.0,0.00016209,2]
[394572914,1763725839270,-45478.28306634,0.0001625,2]
[394572915,1763725839280,-325.74043697,0.00016294,2]
[394572918,1763725839290,-317.47,0.00016295,2]
[394572920,1763725839299,-1625.81,0.00016335,2]
[394572922,1763725839308,-5572.32,0.00016345,2]
[394572924,1763725839318,-17093.48889387,0.00016355,2]
[394572926,1763725839327,-1100.7,0.00016356,2]
[394572929,1763725839336,-272.1,0.00016356,2]
[394572932,1763725839345,-229.38,0.00016356,2]
[394572934,1763725839355,-150.0,0.00016356,2]
[394572936,1763725839368,-302.27,0.00016356,2]
[394572938,1763725839378,-150.0,0.00016356,2]
[394572940,1763725839387,-150.0,0.00016356,2]
[394572941,1763725839399,-150.0,0.00016356,2]
[394572942,1763725839408,-305.4,0.00016371,2]
[394572943,1763725839418,-1472.08751973,0.00016381,2]
[394572944,1763725839428,-279.56671622,0.00016438,2]
[394572945,1763725839439,-363.13683434,0.00016438,2]
[394572946,1763725839449,-500.0,0.00016438,2]
[394572947,1763725839458,-500.0,0.00016438,2]
[394572948,1763725839468,-500.0,0.00016438,2]
[394572949,1763725839478,-8332.59,0.00016438,2]
[394572950,1763725839488,-6995.43,0.0001653,2]
[394572951,1763725839497,-443.936,0.0001653,2]
[394572952,1763725839507,-281.40010126,0.00016534,2]
[394572953,1763725839517,-355.9,0.00016548,2]
[394572954,1763725839526,-17093.48889387,0.00016548,2]
[394572955,1763725839535,-1625.81,0.00016609,2]
[394572956,1763725839544,-1472.08751973,0.00016634,2]
[394572957,1763725839553,-510.0,0.00016712,2]
[394572958,1763725839563,-500.0,0.00016712,2]
[394572959,1763725839572,-500.0,0.00016727,2]
[394572960,1763725839582,-500.0,0.00016727,2]
[394572962,1763725839591,-450.57085936,0.00016727,2]
[394572964,1763725839600,-281.40010126,0.00016729,2]
[394572966,1763725839610,-364.79412459,0.0001673,2]
[394572968,1763725839619,-17093.48889387,0.00016741,2]
[394572970,1763725839628,-603.01444382,0.00016776,2]
[394572971,1763725839638,-166.67,0.00016806,2]
[394572973,1763725839648,-163.74,0.0001682,2]
[394572976,1763725839658,-500.0,0.00016829,2]
[394572978,1763725839668,-500.0,0.00016829,2]
[394572980,1763725839677,-500.0,0.00016829,2]
[394572982,1763725839686,-500.0,0.00016829,2]
[394572984,1763725839696,-191.02092399,0.00016829,2]
[394572986,1763725839705,-500.0,0.00016829,2]
[394572987,1763725839714,-500.0,0.00016829,2]
[394572990,1763725839724,-500.0,0.00016829,2]
[394572992,1763725839734,-500.0,0.00016829,2]
[394572994,1763725839743,-500.0,0.00016829,2]
[394572996,1763725839752,-565.42206877,0.00016829,2]
[394572998,1763725839761,-500.0,0.00016829,2]
[394573000,1763725839770,-500.0,0.00016829,2]
[394573002,1763725839779,-159.45744714,0.00016829,2]
[394573004,1763725839789,-158199.86053441,0.0001683,2]
[394573006,1763725839797,-4072.13537,0.0001683,2]
[394573008,1763725839806,-5572.32,0.00016839,2]
[394573010,1763725839816,-150.0,0.00016849,2]
[394573012,1763725839825,-150.0,0.00016849,2]
[394573014,1763725839834,-288.65065849,0.00016849,2]
[394573016,1763725839843,-152.70507447,0.00016849,2]
[394573018,1763725839852,-150.0,0.00016849,2]
[394573019,1763725839861,-203.72254736,0.00016849,2]
[394573021,1763725839870,-500.0,0.00016849,2]
[394573023,1763725839881,-500.0,0.00016849,2]
[394573025,1763725839890,-150.0,0.00016849,2]
[394573027,1763725839899,-500.0,0.00016849,2]
[394573029,1763725839909,-150.0,0.00016849,2]
[394573031,1763725839921,-500.0,0.00016849,2]
[394573033,1763725839931,-500.0,0.00016849,2]
[394573035,1763725839939,-150.0,0.00016849,2]
[394573037,1763725839948,-150.0,0.00016849,2]
[394573039,1763725839958,-500.0,0.00016849,2]
[394573041,1763725839967,-500.0,0.00016849,2]
[394573043,1763725839976,-500.0,0.00016849,2]
[394573045,1763725839985,-500.0,0.00016849,2]
[394573047,1763725839994,-364.79412459,0.0001686,2]
[394573049,1763725840003,-500.0,0.00016863,2]
[394573051,1763725840013,-500.0,0.00016864,2]
[394573053,1763725840021,-500.0,0.00016864,2]
[394573055,1763725840030,-200.0,0.00016864,2]
[394573057,1763725840040,-1625.81,0.00016883,2]
[394573059,1763725840050,-1472.08751973,0.00016887,2]
[394573061,1763725840060,-300.0,0.00016891,2]
[394573064,1763725840071,-1359.57323118,0.000169,2]
[394573065,1763725840080,-168.9157929,0.000169,2]
[394573068,1763725840089,-923.14172004,0.000169,2]
[394573069,1763725840099,-452.95394212,0.000169,2]
[394573071,1763725840108,-223.69378529,0.000169,2]
[394573073,1763725840118,-275.65599069,0.000169,2]
[394573075,1763725840127,-281.40010126,0.00016924,2]
[394573077,1763725840137,-239.44889093,0.00016925,2]
[394573079,1763725840146,-17093.48889387,0.00016934,2]
[394573081,1763725840156,-251.0,0.00016936,2]
[394573083,1763725840165,-4072.13538,0.0001695,2]
[394573085,1763725840175,-615.0,0.00016959,2]
[394573087,1763725840184,-500.0,0.00016973,2]
[394573089,1763725840194,-152.13204804,0.00016983,2]
[394573091,1763725840205,-500.0,0.00016983,2]
[394573093,1763725840215,-204.7838812,0.00016986,2]
[394573096,1763725840224,-154.03692801,0.00016986,2]
[394573098,1763725840234,-500.0,0.00016986,2]
[394573100,1763725840246,-500.0,0.00016986,2]
[394573102,1763725840255,-533.03885101,0.00016986,2]
[394573104,1763725840264,-205.51892774,0.00016986,2]
[394573106,1763725840274,-500.0,0.00016986,2]
[394573108,1763725840282,-500.0,0.00016986,2]
[394573110,1763725840292,-150.0,0.00016986,2]
[394573112,1763725840301,-500.0,0.00016986,2]
[394573113,1763725840310,-500.0,0.00016986,2]
[394573114,1763725840320,-500.0,0.00016986,2]
[394573115,1763725840330,-500.0,0.00016986,2]
[394573116,1763725840339,-500.0,0.00016986,2]
[394573117,1763725840349,-153.62806187,0.00016986,2]
[394573118,1763725840358,-154.17645535,0.00016986,2]
[394573119,1763725840374,-150.0,0.00016986,2]
[394573120,1763725840384,-205.82954853,0.00016986,2]
[394573121,1763725840394,-167.96822082,0.00016986,2]
[394573122,1763725840404,-157.49198528,0.00016986,2]
[394573123,1763725840415,-232.97251994,0.00016986,2]
[394573124,1763725840424,-500.0,0.00016989,2]
[394573125,1763725840434,-364.79412459,0.0001699,2]
[394573126,1763725840443,-163.74,0.0001699,2]
[394573127,1763725840452,-163.74,0.0001699,2]
[394573128,1763725840462,-163.74,0.0001699,2]
[394573129,1763725840471,-436.01978632,0.0001699,2]
[394573130,1763725840480,-436.01978632,0.0001699,2]
[394573131,1763725840490,-151.0,0.00016997,2]
[394573132,1763725840499,-151.0,0.00016997,2]
[394573133,1763725840509,-151.0,0.00016997,2]
[394573134,1763725840518,-500.0,0.00016998,2]
[394573135,1763725840527,-500.0,0.00016998,2]
[394573136,1763725840536,-7221.9372791,0.00016999,2]
[394573137,1763725840545,-300.0,0.00016999,2]
[394573138,1763725840555,-300.0,0.00016999,2]
[394573139,1763725840564,-300.0,0.00016999,2]
[394573140,1763725840574,-500.0,0.00016999,2]
[394573141,1763725840583,-254.86830282,0.00016999,2]
[394573142,1763725840592,-500.0,0.00016999,2]
[394573143,1763725840603,-500.0,0.00016999,2]
[394573144,1763725840612,-500.0,0.00016999,2]
[394573145,1763725840622,-500.0,0.00016999,2]
[394573146,1763725840633,-500.0,0.00016999,2]
[394573147,1763725840643,-229.59787896,0.00016999,2]
[394573148,1763725840652,-500.0,0.00016999,2]
[394573149,1763725840665,-500.0,0.00016999,2]
[394573150,1763725840674,-291.27618921,0.00016999,2]
[394573151,1763725840684,-300.0,0.00016999,2]
[394573152,1763725840695,-666.0,0.00016999,2]
[394573153,1763725840711,-500.0,0.00016999,2]
[394573154,1763725840720,-500.0,0.00016999,2]
[394573155,1763725840730,-500.0,0.00016999,2]
[394573156,1763725840740,-500.0,0.00016999,2]
[394573157,1763725840750,-529.11873499,0.00016999,2]
[394573158,1763725840759,-525.56,0.00016999,2]
[394573159,1763725840768,-525.56,0.00016999,2]
[394573160,1763725840778,-525.56,0.00016999,2]
[394573161,1763725840788,-525.56,0.00016999,2]
[394573162,1763725840798,-525.56,0.00016999,2]
[394573163,1763725840807,-525.56,0.00016999,2]
[394573164,1763725840817,-525.56,0.00016999,2]
[394573165,1763725840826,-525.56,0.00016999,2]
[394573166,1763725841012,-525.56,0.00016999,2]
[394573167,1763725841022,-525.56,0.00016999,2]
[394573168,1763725841032,-525.56,0.00016999,2]
[394573169,1763725841041,-525.56,0.00016999,2]
[394573170,1763725841051,-525.56,0.00016999,2]
[394573171,1763725841060,-525.56,0.00016999,2]
[394573172,1763725841070,-500.0,0.00016999,2]
[394573173,1763725841079,-500.0,0.00016999,2]
[394573174,1763725841089,-500.0,0.00016999,2]
[394573175,1763725841100,-500.0,0.00016999,2]
[394573176,1763725841110,-500.0,0.00016999,2]
[394573177,1763725841119,-500.0,0.00016999,2]
[394573178,1763725841130,-500.0,0.00016999,2]
[394573179,1763725841141,-500.0,0.00016999,2]
[394573180,1763725841151,-500.0,0.00016999,2]
[394573181,1763725841160,-399.53985602,0.00016999,2]
[394573182,1763725841169,-503.23,0.00016999,2]
[394573183,1763725841178,-503.23,0.00016999,2]
[394573184,1763725841187,-503.23,0.00016999,2]
[394573185,1763725841196,-503.23,0.00016999,2]
[394573186,1763725841206,-503.23,0.00016999,2]
[394573187,1763725841215,-503.23,0.00016999,2]
[394573188,1763725841225,-503.23,0.00016999,2]
[394573189,1763725841235,-503.23,0.00016999,2]
[394573190,1763725841245,-503.23,0.00016999,2]
[394573191,1763725841254,-503.23,0.00016999,2]
[394573192,1763725841264,-503.23,0.00016999,2]
[394573193,1763725841275,-503.23,0.00016999,2]
[394573194,1763725841284,-503.23,0.00016999,2]
[394573195,1763725841297,-503.23,0.00016999,2]
[394573196,1763725841306,-500.0,0.00016999,2]
[394573197,1763725841317,-500.0,0.00016999,2]
[394573198,1763725841327,-611.60324679,0.00016999,2]
[394573199,1763725841337,-300.0,0.00016999,2]
[394573200,1763725841348,-666.0,0.00016999,2]
[394573201,1763725841360,-500.0,0.00016999,2]
[394573202,1763725841371,-500.0,0.00016999,2]
[394573203,1763725841383,-500.0,0.00016999,2]
[394573204,1763725841394,-500.0,0.00016999,2]
[394573205,1763725841406,-500.0,0.00016999,2]
[394573206,1763725841416,-500.0,0.00016999,2]
[394573207,1763725841425,-500.0,0.00016999,2]
[394573208,1763725841435,-500.0,0.00016999,2]
[394573209,1763725841445,-500.0,0.00016999,2]
[394573210,1763725841454,-500.0,0.00016999,2]
[394573211,1763725841463,-500.0,0.00016999,2]
[394573212,1763725841473,-500.0,0.00016999,2]
[394573213,1763725841482,-500.0,0.00016999,2]
[394573214,1763725841491,-5870.0,0.00017,2]
[394573215,1763725841500,-3191346.12575075,0.00017,2]
[394573216,1763725841510,-151.0,0.00017,2]
[394573217,1763725841520,-2000.0,0.00017,2]
[394573218,1763725841529,-200.0,0.00017,2]
[394573219,1763725841538,-250.0,0.00017,2]
[394573220,1763725841547,-151.0,0.00017,2]
[394573221,1763725841558,-1246.0,0.00017,2]
[394573222,1763725841568,-1246.0,0.00017,2]
[394573223,1763725841577,-1246.0,0.00017,2]
[394573224,1763725841587,-1246.0,0.00017,2]
[394573225,1763725841597,-1246.0,0.00017,2]
[394573226,1763725841613,-1246.0,0.00017,2]
[394573227,1763725841624,-1246.0,0.00017,2]
[394573228,1763725841640,-153.0,0.00017,2]
[394573229,1763725841651,-153.0,0.00017,2]
[394573230,1763725841661,-1246.0,0.00017,2]
[394573231,1763725841671,-153.0,0.00017,2]
[394573232,1763725841680,-1246.0,0.00017,2]
[394573233,1763725841691,-153.0,0.00017,2]
[394573234,1763725841700,-157.84372152,0.00017,2]
[394573235,1763725841710,-1246.0,0.00017,2]
[394573236,1763725841719,-1246.0,0.00017,2]
[394573237,1763725841728,-1246.0,0.00017,2]
[394573238,1763725841739,-1246.0,0.00017,2]
[394573239,1763725841750,-1359.57323116,0.00017067,2]
[394573240,1763725841759,-150.0,0.00017078,2]
[394573241,1763725841769,-1956.76053864,0.00017096,2]
[394573242,1763725841778,-2092.314228,0.000171,2]
[394573243,1763725841787,-2459.31164809,0.00017114,2]
[394573244,1763725841796,-300.0,0.00017114,2]
[394573245,1763725841806,-342.78106817,0.00017114,2]
[394573246,1763725841815,-193.0,0.00017114,2]
[394573247,1763725841824,-3503.13127024,0.00017114,3]
[394573248,1763725841833,-200.0,0.00017114,2]
[394573249,1763725841843,-200.0,0.00017114,2]
[394573250,1763725841852,-200.0,0.00017114,2]
[394573251,1763725841861,-200.43996737,0.00017114,2]
[394573252,1763725841871,-251.0,0.00017118,2]
[394573253,1763725841891,-364.79412459,0.0001712,2]
[394573254,1763725841901,-462.94382989,0.00017123,2]
[394573255,1763725841911,-500.0,0.00017123,2]
[394573256,1763725841921,-500.0,0.00017123,2]
[394573257,1763725841931,-500.0,0.00017123,2]
[394573258,1763725841940,-150.0,0.00017123,2]
[394573259,1763725841950,-500.0,0.00017123,2]
[394573260,1763725841960,-500.0,0.00017123,2]
[394573261,1763725841969,-500.0,0.00017123,2]
[394573262,1763725841979,-500.0,0.00017123,2]
[394573263,1763725841989,-273.0,0.00017127,2]
[394573264,1763725841999,-17093.48889387,0.00017128,2]
[394573265,1763725842009,-3435.0,0.0001714,2]
[394573266,1763725842018,-1319.0,0.0001714,2]
[394573267,1763725842028,-609.0,0.0001714,2]
[394573268,1763725842038,-575.0,0.0001714,2]
[394573269,1763725842048,-1601.0,0.0001714,2]
[394573270,1763725842058,-822.0,0.0001714,2]
[394573271,1763725842069,-1192.0,0.0001714,2]
[394573272,1763725842080,-908.0,0.0001714,2]
[394573273,1763725842091,-1256.0,0.0001714,2]
[394573274,1763725842101,-783.0,0.0001714,2]
[394573275,1763725842112,-2662.355,0.0001714,2]
[394573276,1763725842123,-561.0,0.0001714,2]
[394573277,1763725842134,-1606.0,0.0001714,2]
[394573278,1763725842144,-1472.08751973,0.0001714,2]
[394573279,1763725842153,-250.0,0.00017149,2]
[394573280,1763725842164,-300.0,0.00017149,2]
[394573281,1763725842174,-300.0,0.00017149,2]
[394573282,1763725842187,-300.0,0.00017149,2]
[394573283,1763725842201,-300.0,0.00017149,2]
[394573284,1763725842213,-300.0,0.00017149,2]
[394573285,1763725842223,-250.0,0.00017149,2]
[394573286,1763725842233,-1625.81,0.00017157,2]
[394573287,1763725842253,-273.0,0.00017157,2]
[394573288,1763725842264,-251.0,0.00017164,2]
[394573289,1763725842275,-1956.76053864,0.00017178,2]
[394573290,1763725842284,-339.15,0.00017178,2]
[394573291,1763725842295,-1066.92383856,0.00017196,5]
[394573292,1763725842305,-4072.13537,0.0001721,2]
[394573293,1763725842315,-446.0,0.00017216,2]
[394573294,1763725842325,-1956.76053864,0.00017233,2]
[394573295,1763725842336,-1359.57323116,0.00017233,2]
[394573296,1763725842346,-251.75,0.00017239,2]
[394573297,1763725842357,-283.616,0.0001724,2]
[394573298,1763725842371,-162.0,0.0001724,2]
[394573299,1763725842381,-150.816,0.0001724,2]
[394573300,1763725842394,-364.79412459,0.0001725,2]
[394573301,1763725842404,-500.0,0.0001726,2]
[394573302,1763725842415,-619.2882815,0.0001726,2]
[394573303,1763725842425,-150.0,0.0001726,2]
[394573304,1763725842435,-500.0,0.0001726,2]
[394573305,1763725842452,-500.0,0.0001726,2]
[394573306,1763725842463,-500.0,0.0001726,2]
[394573307,1763725842474,-500.0,0.0001726,2]
[394573308,1763725842484,-500.0,0.0001726,2]
[394573309,1763725842494,-251.0,0.00017284,2]
[394573310,1763725842504,-1956.76053864,0.00017315,2]
[394573311,1763725842515,-17093.48889387,0.00017321,2]
[394573312,1763725842525,-273.0,0.00017344,2]
[394573313,1763725842535,-151.0,0.00017367,2]
[394573314,1763725842545,-1956.76053864,0.0001737,2]
[394573315,1763725842556,-163.00731315,0.00017371,2]
[394573316,1763725842566,-355.9,0.00017375,2]
[394573317,1763725842577,-364.79412459,0.0001738,2]
[394573318,1763725842587,-1472.08751973,0.00017394,2]
[394573319,1763725842597,-500.0,0.00017397,2]
[394573320,1763725842608,-254.54498225,0.00017397,2]
[394573321,1763725842618,-500.0,0.00017397,2]
[394573322,1763725842627,-500.0,0.00017397,2]
[394573323,1763725842640,-500.0,0.00017397,2]
[394573324,1763725842652,-500.0,0.00017397,2]
[394573325,1763725842662,-1359.57323116,0.000174,2]
[394573326,1763725842672,-923.14172002,0.000174,2]
[394573327,1763725842682,-452.9539421,0.000174,2]
[394573328,1763725842692,-525.56,0.0001741,2]
[394573329,1763725842702,-317.47,0.0001742,2]
[394573330,1763725842713,-1625.81,0.00017431,2]
[394573331,1763725842728,-4072.13538,0.0001745,2]
[394573332,1763725842738,-1956.76053864,0.00017452,2]
[394573333,1763725842749,-166.66,0.00017461,2]
[394573334,1763725842759,-426.56612961,0.00017463,2]
[394573335,1763725842770,-1600.0,0.00017503,2]
[394573336,1763725842779,-1956.76053864,0.00017507,2]
[394573337,1763725842789,-364.79412459,0.0001751,2]
[394573338,1763725842799,-17093.48889387,0.00017514,2]
[394573339,1763725842809,-238.0,0.0001752,2]
[394573340,1763725842823,-500.0,0.00017521,2]
[394573341,1763725842833,-251.0,0.00017525,2]
[394573342,1763725842844,-500.0,0.00017534,2]
[394573343,1763725842854,-500.0,0.00017534,2]
[394573344,1763725842864,-500.0,0.00017534,2]
[394573345,1763725842874,-500.0,0.00017534,2]
[394573346,1763725842884,-500.0,0.00017534,2]
[394573347,1763725842894,-500.0,0.00017534,2]
[394573348,1763725842904,-1359.57323116,0.00017567,2]
[394573349,1763725842914,-446.0,0.00017578,2]
[394573350,1763725842924,-1956.76053864,0.00017589,2]
[394573351,1763725842934,-211.63,0.00017609,2]
[394573352,1763725842944,-273.0,0.0001761,2]
[394573353,1763725842953,-446.0,0.00017611,2]
[394573354,1763725842963,-364.79412459,0.0001764,2]
[394573355,1763725842973,-503.23,0.00017643,2]
[394573356,1763725842983,-1956.76053864,0.00017644,2]
[394573357,1763725842993,-1472.08751973,0.00017647,2]
[394573358,1763725843003,-151.0,0.00017647,2]
[394573359,1763725843013,-151.0,0.00017647,2]
[394573360,1763725843023,-151.0,0.00017647,2]
[394573361,1763725843032,-151.0,0.00017647,2]
[394573362,1763725843042,-151.0,0.00017647,2]
[394573363,1763725843052,-151.0,0.00017647,2]
[394573364,1763725843062,-151.0,0.00017647,2]
[394573365,1763725843072,-151.0,0.00017647,2]
[394573366,1763725843081,-151.0,0.00017647,2]
[394573367,1763725843091,-151.0,0.00017647,2]
[394573368,1763725843101,-151.0,0.00017647,2]
[394573369,1763725843112,-151.0,0.00017647,2]
[394573371,1763725843121,-151.0,0.00017647,2]
[394573372,1763725843131,-154.98088878,0.00017647,2]
[394573373,1763725843142,-500.0,0.00017657,2]
[394573374,1763725843152,-446.0,0.0001766,2]
[394573375,1763725843162,-500.0,0.00017671,2]
[394573376,1763725843172,-500.0,0.00017671,2]
[394573377,1763725843186,-500.0,0.00017671,2]
[394573378,1763725843196,-500.0,0.00017671,2]
[394573379,1763725843206,-500.0,0.00017671,2]
[394573380,1763725843216,-446.0,0.00017684,2]
[394573381,1763725843226,-305.4,0.00017697,2]
[394573382,1763725843236,-403.0,0.000177,5]
[394573383,1763725843246,-4072.13537,0.000177,2]
[394573384,1763725843256,-446.0,0.00017701,2]
[394573385,1763725843266,-1625.81,0.00017705,2]
[394573386,1763725843276,-17093.48889387,0.00017707,2]
[394573387,1763725843286,-1956.76053864,0.00017726,2]
[394573388,1763725843297,-1359.57323116,0.00017733,2]
[394573389,1763725843307,-364.79412459,0.0001777,2]
[394573390,1763725843316,-1956.76053864,0.00017781,2]
[394573391,1763725843326,-300.0,0.00017791,2]
[394573392,1763725843336,-1000.0,0.00017803,2]
[394573393,1763725843346,-500.0,0.00017808,2]
[394573394,1763725843357,-500.0,0.00017808,2]
[394573395,1763725843370,-500.0,0.00017808,2]
[394573396,1763725843384,-500.0,0.00017808,2]
[394573397,1763725843394,-500.0,0.00017808,2]
[394573398,1763725843405,-500.0,0.00017808,2]
[394573399,1763725843416,-500.0,0.00017808,2]
[394573400,1763725843425,-25000.0,0.0001783,3]
[394573401,1763725843436,-249.002224,0.0001783,2]
[394573402,1763725843446,-249.002224,0.0001783,2]
[394573403,1763725843455,-249.002224,0.0001783,2]
[394573404,1763725843466,-249.002224,0.0001783,2]
[394573405,1763725843476,-151.0,0.0001783,2]
[394573406,1763725843487,-300.0,0.00017837,2]
[394573407,1763725843496,-666.0,0.00017837,2]
[394573408,1763725843506,-300.0,0.00017837,2]
[394573409,1763725843516,-666.0,0.00017837,2]
[394573410,1763725843526,-25000.0,0.00017838,3]
[394573411,1763725843536,-25000.0,0.00017838,3]
[394573412,1763725843546,-317.47,0.00017841,2]
[394573413,1763725843556,-151.0,0.00017846,2]
[394573414,1763725843567,-151.0,0.00017846,2]
[394573415,1763725843580,-151.0,0.00017846,2]
[394573416,1763725843590,-151.0,0.00017846,2]
[394573417,1763725843600,-151.0,0.00017846,2]
[394573418,1763725843610,-151.0,0.00017846,2]
[394573419,1763725843621,-151.0,0.00017846,2]
[394573420,1763725843631,-172.023602,0.00017846,2]
[394573421,1763725843642,-172.023602,0.00017846,2]
[394573422,1763725843652,-172.023602,0.00017846,2]
[394573423,1763725843662,-172.023602,0.00017846,2]
[394573424,1763725843672,-151.0,0.00017846,2]
[394573425,1763725843682,-151.0,0.00017846,2]
[394573426,1763725843692,-151.0,0.00017846,2]
[394573427,1763725843701,-151.0,0.00017846,2]
[394573428,1763725843711,-199.655434,0.00017846,2]
[394573429,1763725843722,-151.0,0.00017846,2]
[394573430,1763725843732,-151.0,0.00017846,2]
[394573431,1763725843742,-330.007428,0.00017846,2]
[394573432,1763725843753,-271.087517,0.00017846,2]
[394573433,1763725843763,-271.087517,0.00017846,2]
[394573434,1763725843772,-271.087517,0.00017846,2]
[394573435,1763725843782,-151.0,0.00017846,2]
[394573436,1763725843792,-271.087517,0.00017846,2]
[394573437,1763725843802,-151.0,0.00017846,2]
[394573438,1763725843812,-151.0,0.00017846,2]
[394573439,1763725843827,-663.82444,0.00017846,2]
[394573440,1763725843837,-663.82444,0.00017846,2]
[394573441,1763725843847,-241.786263,0.00017846,2]
[394573442,1763725843857,-241.786263,0.00017846,2]
[394573443,1763725843867,-155.546512,0.00017846,2]
[394573444,1763725844176,-663.82444,0.00017846,2]
[394573445,1763725844188,-525.56,0.00017846,2]
[394573446,1763725844199,-301.55735151,0.00017846,2]
[394573447,1763725844208,-300.0,0.00017846,2]
[394573448,1763725844218,-666.0,0.00017846,2]
[394573449,1763725844228,-151.0,0.00017847,2]
[394573450,1763725844238,-151.0,0.00017847,2]
[394573451,1763725844252,-157.108984,0.00017847,2]
[394573452,1763725844263,-151.0,0.00017847,2]
[394573453,1763725844273,-151.0,0.00017847,2]
[394573454,1763725844282,-158.067616,0.00017847,2]
[394573455,1763725844291,-151.0,0.00017847,2]
[394573456,1763725844302,-151.0,0.00017847,2]
[394573457,1763725844311,-155.14276,0.00017847,2]
[394573458,1763725844321,-151.0,0.00017847,2]
[394573459,1763725844331,-151.0,0.00017847,2]
[394573460,1763725844342,-151.0,0.00017847,2]
[394573461,1763725844352,-151.0,0.00017847,2]
[394573462,1763725844364,-7107.33400217,0.00017847,3]
[394573472,1763725845251,162.32180183,0.00015787,2]
[394573473,1763725845609,-1419.99979582,0.00016935,2]
[394573474,1763725845618,-6496.0,0.0001714,2]
[394573475,1763725845628,-390.64020418,0.00017847,3]
[394573476,1763725845654,-2626.9272865,0.00017847,3]
[394573477,1763725845713,-231.17658144,0.00015891,2]
[394573478,1763725845723,-8053.16080681,0.00017847,3]
[394573479,1763725845771,-599.5378337,0.00017847,3]
[394573480,1763725860984,10000.01,0.0001559,2]
[394573481,1763725863423,-300.00000017,0.0001559,2]
[394573482,1763725866869,-1719.40575842,0.0001559,2]
[394573483,1763725876260,1600.0,0.00015104,2]
[394573484,1763725896064,5596.344,0.00015278,2]
[394573485,1763725896202,355.148,0.00015278,2]
[394573486,1763725933515,-10000.01,0.0001559,2]
[394573487,1763725940067,-10000.01,0.0001559,2]
[394573488,1763725953862,-965.68048587,0.0001559,2]
[394573489,1763725955488,-4348.62138338,0.0001559,2]
[394573490,1763725958706,-10000.01,0.0001559,2]
[394573491,1763725958959,-10000.01,0.0001559,2]
[394573492,1763725959072,-10000.01,0.0001559,2]
[394573493,1763725959242,-10000.01,0.0001559,2]
[394573494,1763725959405,-10000.01,0.0001559,2]
[394573495,1763725959520,-10000.01,0.0001559,2]
[394573496,1763725959640,-10000.01,0.0001559,2]
[394573497,1763725959761,-10000.01,0.0001559,2]
[394573498,1763725959878,-10000.01,0.0001559,2]